[Event "Fagernes Chess GM-Swiss 2024"]
[Site "Fagernes"]
[Date "2024.03.26"]
[Round "3.38"]
[White "Zheng, Harry Z"]
[Black "Krishnan, Ritvik"]
[Result "0-1"]
[ECO "C08"]
[WhiteElo "2077"]
[BlackElo "2277"]
[Annotator "RC"]
[PlyCount "164"]
[EventDate "2024.03.25"]
[EventType "swiss"]
[EventCountry "NOR"]
[SourceTitle "playchess.com"]
[Source "ChessBase"]
[SourceQuality "1"]
[TimeControl "40/6000+30:2400+30"]

1. e4 {[%emt 0:00:05]} e6 {[%emt 0:00:20]} 2. d4 {[%emt 0:00:11]} d5 {[%emt 0:00:04]} 3. Nd2 {[%emt 0:00:17]} a6 {[%emt 0:00:09]} 4. Ngf3 {[%emt 0:00:30]} c5 {[%emt 0:00:08]} 5. exd5 {[%emt 0:00:36]} exd5 {[%emt 0:00:09]} 6. dxc5 {[%emt 0:00:49]} Bxc5 {[%emt 0:00:16]} 7. Nb3 {[%emt 0:00:12]} Be7 {[%emt 0:02:33]} 8. Bd3 {[%emt 0:05:37]} Nf6 {[%emt 0:00:20]} 9. O-O {[%emt 0:00:39]} O-O {[%emt 0:00:05]} 10. Re1 {[%emt 0:10:51]} Nc6 {[%emt 0:01:28]} 11. Nfd4 {[%emt 0:02:23]} Bg4 {[%emt 0:02:23]} 12. f3 {[%emt 0:04:57]} Bd7 {[%emt 0:04:12]} 13. Nf5 {[%emt 0:09:09]} Bxf5 {[%emt 0:03:31]} 14. Bxf5 {[%emt 0:00:11]} Re8 {[%emt 0:00:32]} 15. Be3 {[%emt 0:12:48]} Qc7 {[%emt 0:02:50]} 16. g3 {[%emt 0:03:08]} Bd6 {[%emt 0:05:52]} 17. Kg2 {[%emt 0:02:12]} Rad8 {[%emt 0:04:55]} 18. c3 {[%emt 0:16:52]} h6 {[%emt 0:15:02]} 19. Qd2 {[%emt 0:07:56]} Ne5 {[%emt 0:01:14]} 20. Qf2 {[%emt 0:02:46]} Nc4 {[%emt 0:03:33]} 21. Bd4 {[%emt 0:00:33]} Be5 {[%emt 0:01:31]} 22. Nc5 {[%emt 0:11:57]} Bxd4 {[%emt 0:06:17]} 23. cxd4 {[%emt 0:00:13]} a5 {[%emt 0:02:25]} 24. h4 {[%emt 0:01:29]} b6 {[%emt 0:03:15]} 25. Nd3 {[%emt 0:00:14]} Rxe1 {[%emt 0:07:13]} 26. Rxe1 {[%emt 0:00:13]} Re8 {[%emt 0:00:40]} 27. Rxe8+ {[%emt 0:05:58]} Nxe8 {[%emt 0:00:54]} 28. Qe2 {[%emt 0:00:45]} Nf6 {[%emt 0:01:35]} 29. Ne5 {[%emt 0:00:59]} b5 {[%emt 0:04:00]} 30. Bd3 {[%emt 0:02:36]} Qb6 {[%emt 0:04:13]} 31. b3 {[%emt 0:02:00]} Nd6 {[%emt 0:00:10]} 32. Qe3 {[%emt 0:00:38]} b4 {[%emt 0:01:41]} 33. Ng4 {[%emt 0:00:42]} Nxg4 {[%emt 0:01:49]} 34. fxg4 {[%emt 0:00:08]} Qb7 {[%emt 0:05:57]} 35. g5 {[%emt 0:03:04]} hxg5 {[%emt 0:02:26]} 36. Qxg5 {[%emt 0:00:07]} f6 {[%emt 0:03:54]} 37. Qh5 {[%emt 0:01:18]} Qf7 {[%emt 0:00:45]} 38. Qe2 {[%emt 0:02:41]} Kf8 {[%emt 0:01:16]} 39. h5 {[%emt 0:01:20]} Qe7 {[%emt 0:01:59]} 40. Qd2 {[%emt 0:00:31]} Ne4 {[%emt 0:03:00]} 41. Qf4 {[%emt 0:05:19]} Nd6 {[%emt 0:03:11]} 42. h6 {[%emt 0:15:21]} gxh6 {[%emt 0:01:53]} 43. Qxh6+ {[%emt 0:00:37]} Qg7 {[%emt 0:00:57]} 44. Qc1 {[%emt 0:02:56]} Qg5 {[%emt 0:05:23]} 45. Qe1 {[%emt 0:16:15]} Nf5 {[%emt 0:05:15]} 46. Bxf5 {[%emt 0:00:20]} Qxf5 {[%emt 0:00:02]} 47. Qd2 {[%emt 0:02:20]} Kf7 {[%emt 0:01:53]} 48. Kh2 {[%emt 0:00:48]} Qf3 {[%emt 0:01:40]} 49. Qc2 {[%emt 0:00:46]} Qe4 {[%emt 0:01:22]} 50. Qc5 {[%emt 0:00:37]} Kg6 {[%emt 0:00:56]} 51. Qa7 {[%emt 0:00:35]} Qc2+ {[%emt 0:02:16]} 52. Kh3 {[%emt 0:00:04]} Qb1 {[%emt 0:04:28]} 53. g4 {[%emt 0:00:56]} Qd3+ {[%emt 0:09:15]} 54. Kh4 {[%emt 0:00:20]} Qd2 {[%emt 0:00:31]} 55. Kg3 {[%emt 0:00:40]} Qe3+ {[%emt 0:01:05]} 56. Kg2 {[%emt 0:00:28]} Qf4 {[%emt 0:00:47]} 57. Kh3 {[%emt 0:00:23]} Qf3+ {[%emt 0:01:07]} 58. Kh4 {[%emt 0:00:04]} Qg2 {[%emt 0:00:43]} 59. Qb8 {[%emt 0:00:06]} Qf2+ {[%emt 0:00:49]} 60. Kh3 {[%emt 0:00:04]} Qxd4 {[%emt 0:00:40]} 61. Qg8+ {[%emt 0:00:56]} Kh6 {[%emt 0:00:01]} 62. Kg3 {[%emt 0:01:29]} Qe3+ {[%emt 0:04:34]} 63. Kg2 {[%emt 0:00:25]} Qd3 {[%emt 0:02:21]} 64. Qh8+ {[%emt 0:00:31]} Kg5 {[%emt 0:00:37]} 65. Qh5+ {[%emt 0:00:33]} Kf4 {[%emt 0:00:01]} 66. Qh6+ {[%emt 0:00:23]} Kxg4 {[%emt 0:01:19]} 67. Qg7+ {[%emt 0:00:23]} Kh5 {[%emt 0:00:14]} 68. Qh8+ {[%emt 0:00:18]} Kg5 {[%emt 0:00:11]} 69. Qg8+ {[%emt 0:00:05]} Qg6 {[%emt 0:04:21]} 70. Qb8 {[%emt 0:01:15]} Qe4+ {[%emt 0:00:41]} 71. Kg1 {[%emt 0:00:18]} Qb1+ {[%emt 0:01:09]} 72. Kg2 {[%emt 0:00:05]} Qxa2+ {[%emt 0:00:19]} 73. Kh1 {[%emt 0:00:04]} Qb1+ {[%emt 0:00:28]} 74. Kg2 {[%emt 0:00:05]} Qe4+ {[%emt 0:00:11]} 75. Kg1 {[%emt 0:00:04]} Qg4+ {[%emt 0:02:04]} 76. Kh1 {[%emt 0:00:11]} Qh3+ {[%emt 0:00:29]} 77. Kg1 {[%emt 0:00:04]} Qxb3 {[%emt 0:00:37]} 78. Qg8+ {[%emt 0:00:09]} Kf4 {[%emt 0:00:04]} 79. Qb8+ {[%emt 0:00:07]} Kf3 {[%emt 0:00:13]} 80. Qg8 {[%emt 0:03:47]} Qd1+ {[%emt 0:00:18]} 81. Kh2 {[%emt 0:00:04]} Qd2+ {[%emt 0:00:09]} 82. Kh1 {[%emt 0:00:08]} Qh6+ {[%emt 0:00:10]} 0-1

[Event "Fagernes Chess GM-Swiss 2024"]
[Site "Fagernes"]
[Date "2024.03.26"]
[Round "3.39"]
[White "Rasmussen, Casper"]
[Black "Aamodt, Peder Marcus"]
[Result "0-1"]
[ECO "E04"]
[WhiteElo "2244"]
[BlackElo "1941"]
[Annotator "RC"]
[PlyCount "54"]
[EventDate "2024.03.25"]
[EventType "swiss"]
[EventCountry "NOR"]
[SourceTitle "playchess.com"]
[Source "ChessBase"]
[SourceQuality "1"]
[TimeControl "40/6000+30:2400+30"]

1. Nf3 {[%emt 0:00:04]} d5 {[%emt 0:06:11]} 2. d4 {[%emt 0:00:10]} Nf6 {[%emt 0:00:33]} 3. c4 {[%emt 0:00:07]} e6 {[%emt 0:00:25]} 4. g3 {[%emt 0:00:07]} dxc4 {[%emt 0:00:34]} 5. Bg2 {[%emt 0:00:05]} Nc6 {[%emt 0:00:19]} 6. Qa4 {[%emt 0:00:11]} Bb4+ {[%emt 0:00:22]} 7. Bd2 {[%emt 0:00:12]} Nd5 {[%emt 0:00:09]} 8. Qc2 {[%emt 0:00:06]} Nb6 {[%emt 0:08:37]} 9. Bxb4 {[%emt 0:00:36]} Nxb4 {[%emt 0:00:06]} 10. Qc3 {[%emt 0:00:12]} a5 {[%emt 0:08:38]} 11. O-O {[%emt 0:05:50]} Bd7 {[%emt 0:04:50]} 12. Na3 {[%emt 0:15:56]} O-O {[%emt 0:03:56]} 13. Nxc4 {[%emt 0:00:41]} Nxc4 {[%emt 0:07:46]} 14. Qxc4 {[%emt 0:00:39]} Bc6 {[%emt 0:00:07]} 15. a3 {[%emt 0:04:46]} Bd5 {[%emt 0:04:07]} 16. Qc3 {[%emt 0:01:08]} Nc6 {[%emt 0:01:23]} 17. Rfd1 {[%emt 0:10:39]} Qd6 {[%emt 0:16:02]} 18. Rac1 {[%emt 0:10:34]} Rfd8 {[%emt 0:02:02]} 19. e3 {[%emt 0:01:07]} Rac8 {[%emt 0:03:39]} 20. Ne1 {[%emt 0:08:57]} Bxg2 {[%emt 0:01:16]} 21. Nxg2 {[%emt 0:00:34]} a4 {[%emt 0:24:53]} 22. Qc4 {[%emt 0:04:45]} Ne5 {[%emt 0:00:56]} 23. Qe2 {[%emt 0:07:27]} Ng6 {[%emt 0:00:22]} 24. Qb5 {[%emt 0:00:54]} Qa6 {[%emt 0:12:17]} 25. Qxa6 {[%emt 0:06:57]} bxa6 {[%emt 0:00:00]} 26. Rc4 {[%emt 0:00:17]} Rb8 {[%emt 0:02:43]} 27. Rd2 {[%emt 0:02:06]} Ne5 {[%emt 0:00:11]} 0-1

[Event "Fagernes Chess GM-Swiss 2024"]
[Site "Fagernes"]
[Date "2024.03.26"]
[Round "3.40"]
[White "Evenshaug, Amadeus Hestvik"]
[Black "Skotheim, Andreas"]
[Result "1/2-1/2"]
[ECO "C73"]
[WhiteElo "2035"]
[BlackElo "2214"]
[Annotator "RC"]
[PlyCount "52"]
[EventDate "2024.03.25"]
[EventType "swiss"]
[EventCountry "NOR"]
[SourceTitle "playchess.com"]
[Source "ChessBase"]
[SourceQuality "1"]
[TimeControl "40/6000+30:2400+30"]

1. e4 {[%emt 0:01:33]} e5 {[%emt 0:00:30]} 2. Nf3 {[%emt 0:00:56]} Nc6 {[%emt 0:00:29]} 3. Bb5 {[%emt 0:00:25]} a6 {[%emt 0:00:26]} 4. Ba4 {[%emt 0:00:19]} Nf6 {[%emt 0:00:50]} 5. O-O {[%emt 0:00:49]} d6 {[%emt 0:00:29]} 6. Bxc6+ {[%emt 0:03:21]} bxc6 {[%emt 0:00:10]} 7. d4 {[%emt 0:00:30]} exd4 {[%emt 0:01:29]} 8. Qxd4 {[%emt 0:01:08]} Be7 {[%emt 0:02:39]} 9. Nc3 {[%emt 0:03:20]} O-O {[%emt 0:01:46]} 10. Bg5 {[%emt 0:02:03]} h6 {[%emt 0:04:40]} 11. Bh4 {[%emt 0:02:55]} Re8 {[%emt 0:07:52]} 12. Rfe1 {[%emt 0:06:49]} c5 {[%emt 0:11:43]} 13. Qd3 {[%emt 0:01:35]} Bb7 {[%emt 0:01:37]} 14. Rad1 {[%emt 0:13:42]} Qc8 {[%emt 0:18:41]} 15. h3 {[%emt 0:12:36]} Rb8 {[%emt 0:03:57]} 16. b3 {[%emt 0:02:56]} Ba8 {[%emt 0:05:07]} 17. Nd5 {[%emt 0:10:07]} Nxd5 {[%emt 0:10:57]} 18. exd5 {[%emt 0:00:25]} g5 {[%emt 0:00:39]} 19. Bg3 {[%emt 0:02:37]} Bb7 {[%emt 0:00:46]} 20. h4 {[%emt 0:07:53]} Qd7 {[%emt 0:01:30]} 21. hxg5 {[%emt 0:03:53]} hxg5 {[%emt 0:00:13]} 22. Re6 {[%emt 0:08:32]} Kg7 {[%emt 0:14:28]} 23. Qc3+ {[%emt 0:05:08]} Kh7 {[%emt 0:00:14]} 24. Qd3+ {[%emt 0:00:19]} Kg7 {[%emt 0:00:15]} 25. Qc3+ {[%emt 0:00:40]} Kh7 {[%emt 0:00:06]} 26. Qd3+ {[%emt 0:00:04]} Kg7 {[%emt 0:00:46]} 1/2-1/2

[Event "Fagernes Chess GM-Swiss 2024"]
[Site "Fagernes"]
[Date "2024.03.26"]
[Round "3.41"]
[White "Akshit Kumar J"]
[Black "Gasland, Lukas Dominik"]
[Result "0-1"]
[ECO "B32"]
[WhiteElo "2172"]
[BlackElo "1985"]
[Annotator "RC"]
[PlyCount "80"]
[EventDate "2024.03.25"]
[EventType "swiss"]
[EventCountry "NOR"]
[SourceTitle "playchess.com"]
[Source "ChessBase"]
[SourceQuality "1"]
[TimeControl "40/6000+30:2400+30"]

1. e4 {[%emt 0:02:07]} c5 {[%emt 0:00:38]} 2. Nf3 {[%emt 0:00:14]} Nc6 {[%emt 0:01:53]} 3. d4 {[%emt 0:01:46]} cxd4 {[%emt 0:00:06]} 4. Nxd4 {[%emt 0:00:10]} e5 {[%emt 0:00:28]} 5. Nb5 {[%emt 0:00:37]} a6 {[%emt 0:00:08]} 6. Nd6+ {[%emt 0:01:29]} Bxd6 {[%emt 0:00:07]} 7. Qxd6 {[%emt 0:00:05]} Qf6 {[%emt 0:00:05]} 8. Qd2 {[%emt 0:08:37]} Qg6 {[%emt 0:01:42]} 9. Nc3 {[%emt 0:00:29]} d5 {[%emt 0:01:20]} 10. Qg5 {[%emt 0:22:23]} dxe4 {[%emt 0:24:18]} 11. Nd5 {[%emt 0:14:00]} Rb8 {[%emt 0:13:57]} 12. Bc4 {[%emt 0:16:17]} Nf6 {[%emt 0:07:41]} 13. O-O {[%emt 0:07:47]} O-O {[%emt 0:03:18]} 14. Nxf6+ {[%emt 0:03:39]} gxf6 {[%emt 0:00:41]} 15. Qxg6+ {[%emt 0:11:15]} hxg6 {[%emt 0:00:30]} 16. Be3 {[%emt 0:06:21]} Rd8 {[%emt 0:06:08]} 17. c3 {[%emt 0:03:20]} b5 {[%emt 0:02:16]} 18. Bb3 {[%emt 0:02:30]} Be6 {[%emt 0:00:14]} 19. Bc2 {[%emt 0:03:06]} f5 {[%emt 0:01:21]} 20. g3 {[%emt 0:00:29]} Bc4 {[%emt 0:01:01]} 21. Rfd1 {[%emt 0:02:24]} Kg7 {[%emt 0:01:05]} 22. h4 {[%emt 0:01:38]} Be2 {[%emt 0:01:11]} 23. Rxd8 {[%emt 0:00:13]} Rxd8 {[%emt 0:00:06]} 24. Re1 {[%emt 0:00:59]} Bd3 {[%emt 0:01:27]} 25. Bb3 {[%emt 0:00:03]} Rd7 {[%emt 0:00:30]} 26. Rd1 {[%emt 0:00:51]} Na5 {[%emt 0:01:06]} 27. Bc2 {[%emt 0:00:21]} Kf6 {[%emt 0:01:32]} 28. Kg2 {[%emt 0:00:47]} Ke6 {[%emt 0:01:45]} 29. Bb3+ {[%emt 0:00:04]} Bc4 {[%emt 0:01:22]} 30. Rxd7 {[%emt 0:00:28]} Kxd7 {[%emt 0:00:06]} 31. Bb6 {[%emt 0:00:53]} Nxb3 {[%emt 0:02:30]} 32. axb3 {[%emt 0:00:04]} Bxb3 {[%emt 0:00:05]} 33. Be3 {[%emt 0:00:48]} Bc4 {[%emt 0:02:37]} 34. h5 {[%emt 0:00:40]} gxh5 {[%emt 0:00:12]} 35. Kh3 {[%emt 0:00:24]} Kc6 {[%emt 0:01:16]} 36. Kh4 {[%emt 0:00:34]} Be2 {[%emt 0:00:07]} 37. Kg5 {[%emt 0:00:25]} Bg4 {[%emt 0:00:07]} 38. Kf6 {[%emt 0:00:33]} Kd5 {[%emt 0:00:06]} 39. Kxf7 {[%emt 0:00:37]} Kc4 {[%emt 0:00:14]} 40. Ke6 {[%emt 0:00:32]} f4+ {[%emt 0:00:15]} 0-1

[Event "Fagernes Chess GM-Swiss 2024"]
[Site "Fagernes"]
[Date "2024.03.26"]
[Round "3.42"]
[White "Juodziukynas, Aidas"]
[Black "Vijayakumar, Rishi"]
[Result "0-1"]
[ECO "D38"]
[WhiteElo "1893"]
[BlackElo "2156"]
[Annotator "RC"]
[PlyCount "56"]
[EventDate "2024.03.25"]
[EventType "swiss"]
[EventCountry "NOR"]
[SourceTitle "playchess.com"]
[Source "ChessBase"]
[SourceQuality "1"]
[TimeControl "40/6000+30:2400+30"]

1. d4 {[%emt 0:02:10]} Nf6 {[%emt 0:00:12]} 2. c4 {[%emt 0:00:23]} e6 {[%emt 0:00:16]} 3. Nf3 {[%emt 0:00:13]} d5 {[%emt 0:00:13]} 4. Nc3 {[%emt 0:00:20]} Bb4 {[%emt 0:00:06]} 5. Bg5 {[%emt 0:01:01]} h6 {[%emt 0:00:19]} 6. Bxf6 {[%emt 0:00:47]} Qxf6 {[%emt 0:01:06]} 7. e3 {[%emt 0:00:37]} O-O {[%emt 0:01:01]} 8. Qb3 {[%emt 0:02:16]} Nc6 {[%emt 0:25:58]} 9. Be2 {[%emt 0:05:21]} Rd8 {[%emt 0:03:01]} 10. O-O {[%emt 0:00:25]} dxc4 {[%emt 0:07:12]} 11. Bxc4 {[%emt 0:04:37]} Qe7 {[%emt 0:00:19]} 12. a3 {[%emt 0:01:47]} Bd6 {[%emt 0:11:44]} 13. Qc2 {[%emt 0:05:41]} e5 {[%emt 0:07:57]} 14. Rfe1 {[%emt 0:07:10]} Bg4 {[%emt 0:05:16]} 15. Qe4 {[%emt 0:02:39]} exd4 {[%emt 0:03:45]} 16. Nxd4 {[%emt 0:08:03]} Qxe4 {[%emt 0:02:20]} 17. Nxe4 {[%emt 0:00:25]} Ne5 {[%emt 0:08:24]} 18. Be2 {[%emt 0:03:12]} Bxe2 {[%emt 0:00:16]} 19. Rxe2 {[%emt 0:00:05]} c5 {[%emt 0:02:00]} 20. Nb3 {[%emt 0:07:02]} b6 {[%emt 0:01:19]} 21. Rd1 {[%emt 0:01:09]} Be7 {[%emt 0:00:50]} 22. Red2 {[%emt 0:03:33]} Nc4 {[%emt 0:00:19]} 23. Rxd8+ {[%emt 0:01:20]} Rxd8 {[%emt 0:01:01]} 24. Rb1 {[%emt 0:00:34]} Rd3 {[%emt 0:02:23]} 25. Nc3 {[%emt 0:00:17]} Nxb2 {[%emt 0:00:32]} 26. Rxb2 {[%emt 0:01:20]} Rxc3 {[%emt 0:00:14]} 27. Kf1 {[%emt 0:01:08]} c4 {[%emt 0:00:19]} 28. Nd2 {[%emt 0:01:51]} Rc1+ {[%emt 0:00:26]} 0-1

[Event "Fagernes Chess GM-Swiss 2024"]
[Site "Fagernes"]
[Date "2024.03.26"]
[Round "3.43"]
[White "Southcott-Moyers, Indy"]
[Black "Stai, Sondre"]
[Result "1/2-1/2"]
[ECO "D02"]
[WhiteElo "2120"]
[BlackElo "1842"]
[Annotator "RC"]
[PlyCount "93"]
[EventDate "2024.03.25"]
[EventType "swiss"]
[EventCountry "NOR"]
[SourceTitle "playchess.com"]
[Source "ChessBase"]
[SourceQuality "1"]
[TimeControl "40/6000+30:2400+30"]

1. d4 {[%emt 0:00:39]} Nf6 {[%emt 0:00:35]} 2. Bf4 {[%emt 0:00:06]} d5 {[%emt 0:02:42]} 3. e3 {[%emt 0:02:19]} c5 {[%emt 0:00:18]} 4. Nf3 {[%emt 0:00:08]} Nc6 {[%emt 0:00:12]} 5. Nbd2 {[%emt 0:00:08]} Bf5 {[%emt 0:01:01]} 6. dxc5 {[%emt 0:00:12]} Qa5 {[%emt 0:09:01]} 7. a3 {[%emt 0:20:01]} Qxc5 {[%emt 0:04:34]} 8. c4 {[%emt 0:01:10]} e6 {[%emt 0:08:29]} 9. b4 {[%emt 0:01:41]} Qb6 {[%emt 0:03:43]} 10. c5 {[%emt 0:01:08]} Qd8 {[%emt 0:01:10]} 11. Bb5 {[%emt 0:01:24]} Nd7 {[%emt 0:11:32]} 12. Bxc6 {[%emt 0:11:06]} bxc6 {[%emt 0:00:28]} 13. Nd4 {[%emt 0:00:06]} Qc8 {[%emt 0:05:13]} 14. Nxf5 {[%emt 0:01:23]} exf5 {[%emt 0:00:11]} 15. O-O {[%emt 0:01:06]} Be7 {[%emt 0:01:27]} 16. Nb3 {[%emt 0:01:16]} Nf8 {[%emt 0:09:26]} 17. Nd4 {[%emt 0:09:25]} Qd7 {[%emt 0:08:32]} 18. Qd3 {[%emt 0:09:59]} Ne6 {[%emt 0:09:35]} 19. Nxf5 {[%emt 0:07:49]} Nxf4 {[%emt 0:00:58]} 20. exf4 {[%emt 0:00:02]} O-O {[%emt 0:01:12]} 21. Rac1 {[%emt 0:05:13]} Rac8 {[%emt 0:01:36]} 22. Rfe1 {[%emt 0:01:58]} Rfe8 {[%emt 0:00:36]} 23. g3 {[%emt 0:01:55]} Bf8 {[%emt 0:04:00]} 24. Nd4 {[%emt 0:02:08]} g6 {[%emt 0:06:40]} 25. Rxe8 {[%emt 0:05:27]} Qxe8 {[%emt 0:01:09]} 26. Nf3 {[%emt 0:02:17]} Bg7 {[%emt 0:04:31]} 27. Re1 {[%emt 0:06:55]} Qd8 {[%emt 0:00:05]} 28. Ne5 {[%emt 0:01:48]} a5 {[%emt 0:01:53]} 29. Qa6 {[%emt 0:03:24]} Bxe5 {[%emt 0:01:16]} 30. fxe5 {[%emt 0:01:19]} axb4 {[%emt 0:01:14]} 31. axb4 {[%emt 0:00:02]} Qe8 {[%emt 0:00:28]} 32. Qd3 {[%emt 0:04:18]} Rb8 {[%emt 0:01:51]} 33. Qd4 {[%emt 0:01:00]} Qe6 {[%emt 0:02:06]} 34. Ra1 {[%emt 0:01:33]} Qc8 {[%emt 0:01:33]} 35. Ra7 {[%emt 0:02:34]} Rb7 {[%emt 0:00:53]} 36. Rxb7 {[%emt 0:01:58]} Qxb7 {[%emt 0:00:07]} 37. Kg2 {[%emt 0:00:43]} Qa6 {[%emt 0:02:10]} 38. Qg4 {[%emt 0:01:49]} Qb7 {[%emt 0:02:46]} 39. h4 {[%emt 0:00:22]} h5 {[%emt 0:02:15]} 40. Qd4 {[%emt 0:01:38]} Qd7 {[%emt 0:01:37]} 41. Kf1 {[%emt 0:09:14]} Qf5 {[%emt 0:01:59]} 42. Ke2 {[%emt 0:06:26]} Kf8 {[%emt 0:08:03]} 43. Ke3 {[%emt 0:06:10]} Qb1 {[%emt 0:01:37]} 44. Kf3 {[%emt 0:04:13]} Ke7 {[%emt 0:01:39]} 45. Qf4 {[%emt 0:04:04]} Qd3+ {[%emt 0:05:29]} 46. Qe3 {[%emt 0:00:08]} Qf5+ {[%emt 0:00:59]} 47. Ke2 {[%emt 0:00:42]} 1/2-1/2

[Event "Fagernes Chess GM-Swiss 2024"]
[Site "Fagernes"]
[Date "2024.03.26"]
[Round "3.44"]
[White "Okuno Okuno, Rion"]
[Black "Andersen, Morten"]
[Result "0-1"]
[ECO "B32"]
[WhiteElo "1981"]
[BlackElo "2178"]
[Annotator "RC"]
[PlyCount "74"]
[EventDate "2024.03.25"]
[EventType "swiss"]
[EventCountry "NOR"]
[SourceTitle "playchess.com"]
[Source "ChessBase"]
[SourceQuality "1"]
[TimeControl "40/6000+30:2400+30"]

1. e4 {[%emt 0:00:04]} c5 {[%emt 0:00:06]} 2. Nf3 {[%emt 0:00:07]} Nc6 {[%emt 0:00:04]} 3. d4 {[%emt 0:00:14]} cxd4 {[%emt 0:02:28]} 4. Nxd4 {[%emt 0:02:04]} e5 {[%emt 0:00:07]} 5. Nb5 {[%emt 0:00:05]} d6 {[%emt 0:00:04]} 6. N1c3 {[%emt 0:00:05]} a6 {[%emt 0:00:14]} 7. Na3 {[%emt 0:00:04]} b5 {[%emt 0:00:16]} 8. Nd5 {[%emt 0:00:07]} Nge7 {[%emt 0:00:26]} 9. Bg5 {[%emt 0:08:27]} h6 {[%emt 0:04:04]} 10. Be3 {[%emt 0:13:21]} Nxd5 {[%emt 0:03:01]} 11. exd5 {[%emt 0:01:46]} Ne7 {[%emt 0:01:44]} 12. c4 {[%emt 0:04:03]} g6 {[%emt 0:08:52]} 13. cxb5 {[%emt 0:05:03]} Bg7 {[%emt 0:01:17]} 14. Bc4 {[%emt 0:15:48]} O-O {[%emt 0:02:48]} 15. O-O {[%emt 0:03:36]} Nf5 {[%emt 0:04:25]} 16. Nc2 {[%emt 0:07:12]} Nxe3 {[%emt 0:10:47]} 17. Nxe3 {[%emt 0:01:29]} f5 {[%emt 0:03:33]} 18. a4 {[%emt 0:05:21]} e4 {[%emt 0:03:41]} 19. Kh1 {[%emt 0:05:19]} f4 {[%emt 0:10:17]} 20. Nc2 {[%emt 0:00:27]} axb5 {[%emt 0:00:50]} 21. Bxb5 {[%emt 0:08:52]} Bxb2 {[%emt 0:05:57]} 22. Rb1 {[%emt 0:00:30]} Qf6 {[%emt 0:00:52]} 23. Nb4 {[%emt 0:09:37]} Bc3 {[%emt 0:05:26]} 24. Qb3 {[%emt 0:02:30]} f3 {[%emt 0:02:57]} 25. g3 {[%emt 0:00:27]} e3 {[%emt 0:11:37]} 26. Rfc1 {[%emt 0:04:51]} Bd2 {[%emt 0:02:18]} 27. Rc2 {[%emt 0:03:52]} Bxb4 {[%emt 0:03:15]} 28. Qxb4 {[%emt 0:00:15]} Bf5 {[%emt 0:00:00]} 29. Qb2 {[%emt 0:02:53]} Qxb2 {[%emt 0:02:21]} 30. Rcxb2 {[%emt 0:00:12]} Bxb1 {[%emt 0:00:12]} 31. Rxb1 {[%emt 0:00:02]} e2 {[%emt 0:01:43]} 32. h3 {[%emt 0:00:38]} Rfb8 {[%emt 0:01:09]} 33. Re1 {[%emt 0:00:50]} Rxb5 {[%emt 0:03:30]} 34. axb5 {[%emt 0:00:25]} Rb8 {[%emt 0:00:16]} 35. Kh2 {[%emt 0:00:48]} Rxb5 {[%emt 0:00:08]} 36. g4 {[%emt 0:00:16]} Rxd5 {[%emt 0:00:17]} 37. Kg3 {[%emt 0:00:06]} Rd1 {[%emt 0:00:08]} 0-1

[Event "Fagernes Chess GM-Swiss 2024"]
[Site "Fagernes"]
[Date "2024.03.26"]
[Round "3.45"]
[White "Kaewpitakkun, Pantham"]
[Black "Gandrud, Vegar Koi"]
[Result "1-0"]
[ECO "B90"]
[WhiteElo "1989"]
[BlackElo "2293"]
[Annotator "RC"]
[PlyCount "111"]
[EventDate "2024.03.25"]
[EventType "swiss"]
[EventCountry "NOR"]
[SourceTitle "playchess.com"]
[Source "ChessBase"]
[SourceQuality "1"]
[TimeControl "40/6000+30:2400+30"]

1. e4 {[%emt 0:00:03]} c5 {[%emt 0:00:04]} 2. Nf3 {[%emt 0:00:02]} d6 {[%emt 0:00:04]} 3. d4 {[%emt 0:00:08]} cxd4 {[%emt 0:00:05]} 4. Nxd4 {[%emt 0:00:05]} Nf6 {[%emt 0:00:03]} 5. Nc3 {[%emt 0:00:08]} a6 {[%emt 0:00:04]} 6. Rg1 {[%emt 0:00:11]} b5 {[%emt 0:03:14]} 7. a4 {[%emt 0:01:11]} b4 {[%emt 0:04:57]} 8. Nd5 {[%emt 0:00:05]} e6 {[%emt 0:19:54]} 9. Nxf6+ {[%emt 0:02:12]} Qxf6 {[%emt 0:02:24]} 10. b3 {[%emt 0:11:26]} Bb7 {[%emt 0:04:00]} 11. Bb2 {[%emt 0:03:40]} e5 {[%emt 0:02:19]} 12. Ne2 {[%emt 0:03:59]} Bxe4 {[%emt 0:00:28]} 13. Ng3 {[%emt 0:00:23]} Bb7 {[%emt 0:01:42]} 14. Qd2 {[%emt 0:01:09]} d5 {[%emt 0:13:25]} 15. O-O-O {[%emt 0:01:54]} Nd7 {[%emt 0:00:08]} 16. f4 {[%emt 0:13:58]} Qxf4 {[%emt 0:24:49]} 17. Qxf4 {[%emt 0:00:35]} exf4 {[%emt 0:00:01]} 18. Nh5 {[%emt 0:00:34]} f6 {[%emt 0:00:32]} 19. Nxf4 {[%emt 0:01:54]} Bc5 {[%emt 0:03:23]} 20. Bd4 {[%emt 0:00:10]} Bd6 {[%emt 0:07:26]} 21. g3 {[%emt 0:00:33]} Nc5 {[%emt 0:05:19]} 22. Bg2 {[%emt 0:04:06]} Rc8 {[%emt 0:03:40]} 23. Kb2 {[%emt 0:03:05]} Bxf4 {[%emt 0:00:59]} 24. gxf4 {[%emt 0:01:48]} Kf7 {[%emt 0:00:07]} 25. Bf2 {[%emt 0:13:50]} Rhd8 {[%emt 0:00:19]} 26. Rd4 {[%emt 0:01:37]} a5 {[%emt 0:02:55]} 27. Rgd1 {[%emt 0:00:34]} Ne6 {[%emt 0:00:55]} 28. Bxd5 {[%emt 0:00:12]} Bxd5 {[%emt 0:00:39]} 29. Rxd5 {[%emt 0:00:07]} Rxd5 {[%emt 0:00:09]} 30. Rxd5 {[%emt 0:00:06]} Nxf4 {[%emt 0:00:10]} 31. Rxa5 {[%emt 0:00:27]} Ke6 {[%emt 0:02:02]} 32. Ra7 {[%emt 0:02:43]} Rd8 {[%emt 0:01:41]} 33. Be1 {[%emt 0:02:58]} Nd5 {[%emt 0:00:27]} 34. Rxg7 {[%emt 0:00:37]} f5 {[%emt 0:00:13]} 35. Rxh7 {[%emt 0:02:52]} f4 {[%emt 0:00:19]} 36. Rb7 {[%emt 0:12:58]} f3 {[%emt 0:01:22]} 37. Bf2 {[%emt 0:04:58]} Rg8 {[%emt 0:02:12]} 38. a5 {[%emt 0:04:12]} Nc3 {[%emt 0:00:32]} 39. Rxb4 {[%emt 0:02:01]} Nd1+ {[%emt 0:00:06]} 40. Ka2 {[%emt 0:00:43]} Nxf2 {[%emt 0:03:15]} 41. Rf4 {[%emt 0:40:11]} Kd5 {[%emt 0:07:21]} 42. Rxf3 {[%emt 0:00:00]} Ne4 {[%emt 0:00:05]} 43. h4 {[%emt 0:00:00]} Rg2 {[%emt 0:02:31]} 44. Kb2 {[%emt 0:00:00]} Rh2 {[%emt 0:00:19]} 45. Rf5+ {[%emt 0:00:00]} Kc6 {[%emt 0:04:58]} 46. Rh5 {[%emt 0:00:00]} Nc5 {[%emt 0:10:11]} 47. b4 {[%emt 0:00:00]} Nd3+ {[%emt 0:01:32]} 48. Kc3 {[%emt 0:00:00]} Nxb4 {[%emt 0:03:26]} 49. Kxb4 {[%emt 0:00:00]} Rxc2 {[%emt 0:00:02]} 50. Rh7 {[%emt 0:00:00]} Ra2 {[%emt 0:06:00]} 51. a6 {[%emt 0:00:00]} Ra1 {[%emt 0:00:24]} 52. a7 {[%emt 0:00:00]} Kd6 {[%emt 0:01:42]} 53. h5 {[%emt 0:00:00]} Rb1+ {[%emt 0:01:14]} 54. Kc3 {[%emt 0:00:00]} Ra1 {[%emt 0:00:17]} 55. h6 {[%emt 0:00:00]} Ke6 {[%emt 0:00:33]} 56. Rb7 {[%emt 0:00:00]} 1-0